[Event "NJSK 2022 Jeugd B"]
[Site "Almelo, Netherlands"]
[Date "2022.05.01"]
[Round "1.1"]
[White "Labruyere, Roger"]
[Black "Blom, Rens"]
[Result "1-0"]
[TimeControl "90min/40moves + 30min + 30sec/move"]
[WhiteElo "2199"]
[BlackElo "1699"]

1. c4 {[%clk 01:30:57]} {[%emt 00:00:03]} Nf6 {[%clk 01:30:55]} {[%emt
00:00:05]} 2. d4 {[%clk 01:31:23]} {[%emt 00:00:05]} g6 {[%clk 01:31:19]}
{[%emt 00:00:05]} 3. g3 {[%clk 01:29:42]} {[%emt 00:02:10]} Bg7 {[%clk
01:31:43]} {[%emt 00:00:08]} 4. Bg2 {[%clk 01:30:09]} {[%emt 00:00:02]} O-O
{[%clk 01:32:07]} {[%emt 00:00:06]} 5. Nf3 {[%clk 01:29:31]} {[%emt 00:01:07]}
d6 {[%clk 01:32:27]} {[%emt 00:00:11]} 6. O-O {[%clk 01:29:53]} {[%emt
00:00:08]} a6 {[%clk 01:31:35]} {[%emt 00:01:22]} 7. Nc3 {[%clk 01:29:12]}
{[%emt 00:01:10]} Nc6 {[%clk 01:31:45]} {[%emt 00:00:21]} 8. e4 {[%clk
01:29:00]} {[%emt 00:00:41]} Rb8 {[%clk 01:30:31]} {[%emt 00:01:46]} 9. a4
{[%clk 01:24:51]} {[%emt 00:04:39]} e5 {[%clk 01:26:42]} {[%emt 00:04:18]} 10.
dxe5 {[%clk 01:22:50]} {[%emt 00:02:30]} dxe5 {[%clk 01:26:52]} {[%emt
00:00:21]} 11. Qxd8 {[%clk 01:16:37]} {[%emt 00:06:44]} Rxd8 {[%clk 01:26:47]}
{[%emt 00:00:34]} 12. Bg5 {[%clk 01:16:42]} {[%emt 00:00:25]} Re8 {[%clk
01:14:10]} {[%emt 00:13:08]} 13. Bxf6 {[%clk 01:16:42]} {[%emt 00:00:29]} Bxf6
{[%clk 01:14:35]} {[%emt 00:00:05]} 14. Nd5 {[%clk 01:17:07]} {[%emt 00:00:05]}
Bd8 {[%clk 01:14:59]} {[%emt 00:00:07]} 15. b4 {[%clk 01:17:10]} {[%emt
00:00:26]} Nd4 {[%clk 01:06:23]} {[%emt 00:09:06]} 16. Nxd4 {[%clk 01:16:24]}
{[%emt 00:01:16]} exd4 {[%clk 01:06:48]} {[%emt 00:00:06]} 17. Rfd1 {[%clk
01:16:28]} {[%emt 00:00:25]} c6 {[%clk 01:06:18]} {[%emt 00:01:01]} 18. Nf4
{[%clk 01:16:51]} {[%emt 00:00:05]} Bf6 {[%clk 01:04:05]} {[%emt 00:02:44]} 19.
Nd3 {[%clk 01:16:45]} {[%emt 00:00:35]} a5 {[%clk 00:55:30]} {[%emt 00:09:06]}
20. b5 {[%clk 01:06:00]} {[%emt 00:11:15]} Bg4 {[%clk 00:48:59]} {[%emt
00:07:02]} 21. Rd2 {[%clk 01:04:32]} {[%emt 00:01:57]} cxb5 {[%clk 00:42:54]}
{[%emt 00:06:36]} 22. axb5 {[%clk 01:04:37]} {[%emt 00:00:24]} b6 {[%clk
00:43:02]} {[%emt 00:00:22]} 23. f4 {[%clk 01:04:53]} {[%emt 00:00:13]} Rbc8
{[%clk 00:40:12]} {[%emt 00:03:21]} 24. e5 {[%clk 00:51:12]} {[%emt 00:14:11]}
Be7 {[%clk 00:40:11]} {[%emt 00:00:32]} 25. Bd5 {[%clk 00:50:42]} {[%emt
00:00:59]} Kg7 {[%clk 00:35:48]} {[%emt 00:22:45]} 26. Nf2 {[%clk 00:50:06]}
{[%emt 00:01:05]} Bb4 {[%clk 00:29:47]} {[%emt 00:06:33]} 27. Rda2 {[%clk
00:23:16]} {[%emt 00:27:20]} Be6 {[%clk 00:25:23]} {[%emt 00:04:53]} 28. Ne4
{[%clk 00:20:17]} {[%emt 00:03:29]} Red8 {[%clk 00:18:13]} {[%emt 00:07:41]} 29.
Bxe6 {[%clk 00:10:09]} {[%emt 00:10:38]} fxe6 {[%clk 00:18:38]} {[%emt
00:00:04]} 30. Ng5 {[%clk 00:09:13]} {[%emt 00:01:26]} Re8 {[%clk 00:18:58]}
{[%emt 00:00:10]} 31. Rc1 {[%clk 00:08:31]} {[%emt 00:01:12]} h6 {[%clk
00:15:59]} {[%emt 00:03:29]} 32. Ne4 {[%clk 00:05:56]} {[%emt 00:03:05]} Red8
{[%clk 00:15:37]} {[%emt 00:00:53]} 33. Kf2 {[%clk 00:05:22]} {[%emt 00:01:03]}
Be7 {[%clk 00:12:31]} {[%emt 00:03:37]} 34. Rd2 {[%clk 00:04:11]} {[%emt
00:01:40]} g5 {[%clk 00:11:41]} {[%emt 00:01:21]} 35. Ke2 {[%clk 00:04:24]}
{[%emt 00:00:17]} Kg6 {[%clk 00:10:50]} {[%emt 00:01:21]} 36. Kd3 {[%clk
00:04:22]} {[%emt 00:00:31]} Kf5 {[%clk 00:06:51]} {[%emt 00:04:30]} 37. fxg5
{[%clk 00:03:22]} {[%emt 00:01:29]} hxg5 {[%clk 00:05:41]} {[%emt 00:01:41]} 38.
Rf1+ {[%clk 00:03:07]} {[%emt 00:00:45]} Kg6 {[%clk 00:04:41]} {[%emt
00:01:30]} 39. Rdf2 {[%clk 00:03:13]} {[%emt 00:00:22]} Rf8 {[%clk 00:04:40]}
{[%emt 00:00:33]} 40. Rxf8 {[%clk 00:02:16]} {[%emt 00:01:27]} Rxf8 {[%clk
00:04:51]} {[%emt 00:00:19]} 41. Rxf8 {[%clk 00:02:40]} {[%emt 00:00:05]} Bxf8
{[%clk 00:05:18]} {[%emt 00:00:03]} 42. g4 {[%clk 00:01:27]} {[%emt 00:01:43]}
Be7 {[%clk 00:03:29]} {[%emt 00:02:19]} 43. Kxd4 {[%clk 00:01:00]} {[%emt
00:00:57]} Kf7 {[%clk 00:02:18]} {[%emt 00:01:41]} 44. c5 {[%clk 00:00:36]}
{[%emt 00:00:54]} bxc5+ {[%clk 00:00:55]} {[%emt 00:01:53]} 45. Nxc5 {[%clk
00:00:40]} {[%emt 00:00:27]} Bd8 {[%clk 00:29:38]} {[%emt 00:01:47]} 46. Na4
{[%clk 00:30:09]} {[%emt 00:01:00]} Ke7 {[%clk 00:27:15]} {[%emt 00:02:54]} 47.
Kc5 {[%clk 00:30:09]} {[%emt 00:00:29]} Kd7 {[%clk 00:27:29]} {[%emt 00:00:16]}
48. b6 {[%clk 00:30:30]} {[%emt 00:00:09]} Kc8 {[%clk 00:22:40]} {[%emt
00:05:21]} 49. Kc6 {[%clk 00:30:44]} {[%emt 00:00:15]} Bc7 {[%clk 00:21:35]}
{[%emt 00:01:34]} 50. b7+ {[%clk 00:30:55]} {[%emt 00:00:19]} Kb8 {[%clk
00:21:46]} {[%emt 00:00:20]} 51. Nc5 {[%clk 00:31:14]} {[%emt 00:00:10]} a4
{[%clk 00:17:59]} {[%emt 00:04:18]} 52. Nd7+ {[%emt 00:01:55]} 1-0

[Event "NJSK 2022 Jeugd B"]
[Site "Almelo, Netherlands"]
[Date "2022.05.01"]
[Round "1.2"]
[White "Niemeijer, Leon"]
[Black "Van der Hagen, Loek"]
[Result "1/2-1/2"]
[TimeControl "90min/40moves + 30min + 30sec/move"]
[WhiteElo "1693"]
[BlackElo "2071"]

1. d4 {[%clk 01:30:56]} {[%emt 00:00:03]} Nf6 {[%clk 01:30:56]} {[%emt
00:00:04]} 2. c4 {[%clk 01:31:20]} {[%emt 00:00:06]} c5 {[%clk 01:30:58]}
{[%emt 00:00:29]} 3. d5 {[%clk 01:31:36]} {[%emt 00:00:14]} b5 {[%clk
01:31:24]} {[%emt 00:00:04]} 4. cxb5 {[%clk 01:31:55]} {[%emt 00:00:11]} a6
{[%clk 01:31:49]} {[%emt 00:00:04]} 5. bxa6 {[%clk 01:32:02]} {[%emt 00:00:23]}
e6 {[%clk 01:32:14]} {[%emt 00:00:05]} 6. dxe6 {[%clk 01:26:12]} {[%emt
00:06:20]} fxe6 {[%clk 01:32:40]} {[%emt 00:00:05]} 7. e3 {[%clk 01:25:53]}
{[%emt 00:00:48]} d5 {[%clk 01:30:00]} {[%emt 00:03:10]} 8. Nf3 {[%clk
01:24:34]} {[%emt 00:01:49]} Bd6 {[%clk 01:27:49]} {[%emt 00:02:40]} 9. Bb5+
{[%clk 01:19:15]} {[%emt 00:05:49]} Nbd7 {[%clk 01:27:40]} {[%emt 00:00:40]} 10.
Nc3 {[%clk 01:19:16]} {[%emt 00:00:29]} O-O {[%clk 01:26:47]} {[%emt 00:01:23]}
11. O-O {[%clk 01:19:28]} {[%emt 00:00:17]} Qb6 {[%clk 01:18:38]} {[%emt
00:08:40]} 12. a4 {[%clk 00:59:14]} {[%emt 00:20:45]} Bxa6 {[%clk 01:10:22]}
{[%emt 00:08:44]} 13. Bxa6 {[%clk 00:57:07]} {[%emt 00:02:39]} Rxa6 {[%clk
01:10:45]} {[%emt 00:00:07]} 14. Nb5 {[%clk 00:56:58]} {[%emt 00:00:39]} Ne5
{[%clk 00:55:02]} {[%emt 00:16:13]} 15. Nxe5 {[%clk 00:47:28]} {[%emt
00:09:59]} Bxe5 {[%clk 00:55:26]} {[%emt 00:00:06]} 16. f4 {[%clk 00:46:44]}
{[%emt 00:01:14]} Bb8 {[%clk 00:55:15]} {[%emt 00:00:41]} 17. b3 {[%clk
00:46:16]} {[%emt 00:00:59]} e5 {[%clk 00:49:03]} {[%emt 00:06:42]} 18. Bb2
{[%clk 00:43:30]} {[%emt 00:03:15]} c4 {[%clk 00:39:28]} {[%emt 00:10:05]} 19.
fxe5 {[%clk 00:41:54]} {[%emt 00:19:52]} Bxe5 {[%clk 00:38:21]} {[%emt
00:01:37]} 20. Bd4 {[%clk 00:34:48]} {[%emt 00:07:36]} Qb8 {[%clk 00:33:42]}
{[%emt 00:05:09]} 21. h3 {[%clk 00:33:58]} {[%emt 00:01:21]} Re8 {[%clk
00:13:16]} {[%emt 00:20:56]} 22. Bxe5 {[%clk 00:31:04]} {[%emt 00:03:23]} Qxe5
{[%clk 00:13:25]} {[%emt 00:00:21]} 23. Re1 {[%clk 00:26:06]} {[%emt 00:05:28]}
Ne4 {[%clk 00:04:11]} {[%emt 00:09:44]} 24. bxc4 {[%clk 00:24:48]} {[%emt
00:01:49]} dxc4 {[%clk 00:03:24]} {[%emt 00:01:17]} 25. Qd4 {[%clk 00:23:59]}
{[%emt 00:01:18]} Qg3 {[%clk 00:02:02]} {[%emt 00:01:53]} 26. Qxc4+ {[%clk
00:23:48]} {[%emt 00:00:42]} Kh8 {[%clk 00:02:30]} 27. Qf7 {[%clk 00:20:01]}
{[%emt 00:04:15]} Rd8 {[%clk 00:02:25]} {[%emt 00:00:36]} 28. Qf3 {[%clk
00:18:12]} {[%emt 00:02:19]} Qxf3 {[%clk 00:02:22]} {[%emt 00:00:34]} 29. gxf3
{[%clk 00:18:28]} {[%emt 00:00:14]} Rg6+ {[%clk 00:02:49]} {[%emt 00:00:02]} 30.
Kf1 {[%clk 00:15:50]} {[%emt 00:03:09]} Ng3+ {[%clk 00:03:14]} {[%emt
00:00:04]} 31. Kg1 {[%clk 00:14:48]} {[%emt 00:01:33]} Rd2 {[%clk 00:03:26]}
{[%emt 00:00:18]} 32. Nd4 {[%clk 00:05:28]} {[%emt 00:09:51]} Nh5+ {[%clk
00:02:13]} {[%emt 00:01:42]} 33. Kf1 {[%clk 00:03:55]} {[%emt 00:02:03]} Ng3+
{[%clk 00:02:24]} {[%emt 00:00:18]} 34. Kg1 {[%clk 00:04:17]} {[%emt 00:00:09]}
Nh5+ {[%clk 00:00:56]} {[%emt 00:01:58]} 35. Kf1 {[%clk 00:04:25]} {[%emt
00:00:22]} Ng3+ {[%clk 00:00:40]} {[%emt 00:00:46]} 1/2-1/2

[Event "NJSK 2022 Jeugd B"]
[Site "Almelo, Netherlands"]
[Date "2022.05.01"]
[Round "1.3"]
[White "Slagboom, Leandro"]
[Black "Wierenga, Jael"]
[Result "1-0"]
[TimeControl "90min/40moves + 30min + 30sec/move"]
[WhiteElo "1997"]
[BlackElo "1691"]

1. d4 {[%clk 01:30:56]} {[%emt 00:00:03]} Nf6 {[%clk 01:30:55]} {[%emt
00:00:05]} 2. Nf3 {[%clk 01:30:59]} {[%emt 00:00:27]} d5 {[%clk 01:31:14]}
{[%emt 00:00:11]} 3. c4 {[%clk 01:30:22]} {[%emt 00:01:07]} e6 {[%clk
01:31:30]} {[%emt 00:00:14]} 4. g3 {[%clk 01:30:39]} {[%emt 00:00:12]} Be7
{[%clk 01:30:13]} {[%emt 00:01:48]} 5. Bg2 {[%clk 01:31:00]} {[%emt 00:00:10]}
O-O {[%clk 01:29:14]} {[%emt 00:01:29]} 6. O-O {[%clk 01:31:20]} {[%emt
00:00:08]} c6 {[%clk 01:29:20]} {[%emt 00:00:25]} 7. Qc2 {[%clk 01:31:04]}
{[%emt 00:00:46]} dxc4 {[%clk 01:22:58]} {[%emt 00:06:52]} 8. Qxc4 {[%clk
01:30:17]} {[%emt 00:01:18]} b5 {[%clk 01:22:23]} {[%emt 00:01:05]} 9. Qb3
{[%clk 01:29:24]} {[%emt 00:01:22]} Bb7 {[%clk 01:22:15]} {[%emt 00:00:37]} 10.
Rd1 {[%clk 01:28:56]} {[%emt 00:00:58]} Qb6 {[%clk 01:21:50]} {[%emt 00:00:55]}
11. Be3 {[%clk 01:24:51]} {[%emt 00:04:36]} Nd5 {[%clk 01:21:18]} {[%emt
00:01:03]} 12. Bg5 {[%clk 01:24:47]} {[%emt 00:00:33]} Nd7 {[%clk 01:15:57]}
{[%emt 00:05:51]} 13. e4 {[%clk 01:17:52]} {[%emt 00:07:24]} N5f6 {[%clk
01:13:57]} {[%emt 00:02:31]} 14. Nc3 {[%clk 01:16:04]} {[%emt 00:02:18]} h6
{[%clk 01:08:37]} {[%emt 00:05:50]} 15. Be3 {[%clk 01:16:03]} {[%emt 00:00:31]}
Qa5 {[%clk 00:54:09]} {[%emt 00:14:58]} 16. Ne1 {[%clk 01:01:01]} {[%emt
00:15:32]} a6 {[%clk 00:48:36]} {[%emt 00:06:04]} 17. Nd3 {[%clk 00:55:29]}
{[%emt 00:06:01]} Rac8 {[%clk 00:44:04]} {[%emt 00:05:03]} 18. Qc2 {[%clk
00:44:38]} {[%emt 00:11:20]} b4 {[%clk 00:32:31]} {[%emt 00:29:56]} 19. Na4
{[%clk 00:41:30]} {[%emt 00:03:38]} Rfd8 {[%clk 00:18:39]} {[%emt 00:14:22]} 20.
Nac5 {[%clk 00:37:49]} {[%emt 00:04:10]} Nxc5 {[%clk 00:18:12]} {[%emt
00:00:58]} 21. dxc5 {[%clk 00:38:05]} {[%emt 00:00:13]} Qb5 {[%clk 00:15:44]}
{[%emt 00:02:58]} 22. a3 {[%clk 00:29:39]} {[%emt 00:08:57]} a5 {[%clk
00:11:37]} {[%emt 00:04:37]} 23. axb4 {[%clk 00:20:55]} {[%emt 00:09:14]} axb4
{[%clk 00:12:05]} {[%emt 00:00:02]} 24. b3 {[%clk 00:15:28]} {[%emt 00:05:58]}
Ba6 {[%clk 00:12:00]} {[%emt 00:00:34]} 25. Nb2 {[%clk 00:12:11]} {[%emt
00:03:47]} Qe2 {[%clk 00:11:07]} {[%emt 00:01:23]} 26. Qc1 {[%clk 00:09:15]}
{[%emt 00:03:26]} Rxd1+ {[%clk 00:10:18]} {[%emt 00:01:18]} 27. Qxd1 {[%clk
00:09:35]} {[%emt 00:00:10]} Qxd1+ {[%clk 00:10:25]} {[%emt 00:00:24]} 28. Rxd1
{[%clk 00:09:31]} {[%emt 00:00:34]} Ng4 {[%clk 00:09:47]} {[%emt 00:01:07]} 29.
Rd7 {[%clk 00:04:20]} {[%emt 00:05:42]} Bf6 {[%clk 00:07:33]} {[%emt 00:02:44]}
30. Na4 {[%clk 00:03:12]} {[%emt 00:01:38]} Nxe3 {[%clk 00:06:52]} {[%emt
00:01:11]} 31. fxe3 {[%clk 00:03:40]} {[%emt 00:00:01]} Bb5 {[%clk 00:04:15]}
{[%emt 00:03:07]} 32. Nb6 {[%clk 00:03:33]} {[%emt 00:00:38]} Rd8 {[%clk
00:03:37]} {[%emt 00:01:08]} 33. Bf1 {[%clk 00:02:49]} {[%emt 00:01:14]} Bxf1
{[%clk 00:01:01]} {[%emt 00:03:06]} 34. Kxf1 {[%clk 00:03:18]} {[%emt
00:00:01]} Rxd7 {[%clk 00:01:05]} {[%emt 00:00:26]} 35. Nxd7 {[%clk 00:03:47]}
{[%emt 00:00:01]} Be7 {[%clk 00:01:22]} {[%emt 00:00:13]} 36. Ke2 {[%clk
00:03:53]} {[%emt 00:00:24]} f5 {[%clk 00:00:52]} {[%emt 00:01:00]} 37. exf5
{[%clk 00:04:13]} {[%emt 00:00:10]} exf5 {[%clk 00:01:20]} {[%emt 00:00:01]} 38.
Kd3 {[%clk 00:04:25]} {[%emt 00:00:18]} Kf7 {[%clk 00:00:54]} {[%emt 00:00:56]}
39. Kd4 {[%clk 00:03:57]} {[%emt 00:00:58]} Ke6 {[%clk 00:00:47]} {[%emt
00:00:37]} 40. Nb8 {[%clk 00:04:11]} {[%emt 00:00:16]} Bf6+ {[%clk 00:00:32]}
{[%emt 00:00:46]} 41. Kc4 {[%clk 00:04:03]} {[%emt 00:00:38]} Bg5 {[%clk
00:29:51]} {[%emt 00:01:11]} 42. Nxc6 {[%clk 00:30:08]} {[%emt 00:04:24]} Bxe3
{[%clk 00:29:49]} {[%emt 00:00:32]} 43. Nxb4 {[%clk 00:25:08]} {[%emt
00:05:31]} Bg1 {[%clk 00:26:24]} {[%emt 00:03:55]} 44. h3 {[%clk 00:19:57]}
{[%emt 00:05:40]} Bf2 {[%clk 00:23:13]} {[%emt 00:03:41]} 45. g4 {[%clk
00:18:58]} {[%emt 00:01:30]} f4 {[%clk 00:23:04]} {[%emt 00:00:39]} 46. Nd3
{[%clk 00:16:49]} {[%emt 00:02:38]} Be3 {[%clk 00:22:24]} {[%emt 00:01:10]} 47.
Ne1 {[%clk 00:16:02]} {[%emt 00:01:17]} Ke5 {[%clk 00:21:04]} {[%emt 00:01:50]}
48. b4 {[%clk 00:16:03]} {[%emt 00:00:29]} Ke4 {[%clk 00:20:17]} {[%emt
00:01:17]} 49. b5 {[%clk 00:15:59]} {[%emt 00:00:35]} f3 {[%clk 00:11:10]}
{[%emt 00:09:37]} 50. Nxf3 {[%clk 00:16:18]} {[%emt 00:00:10]} Kxf3 {[%clk
00:11:34]} {[%emt 00:00:06]} 51. Kd5 {[%clk 00:16:16]} {[%emt 00:00:32]} Kg3
{[%clk 00:10:33]} {[%emt 00:01:32]} 52. c6 {[%clk 00:15:21]} {[%emt 00:01:24]}
Bb6 {[%clk 00:10:27]} {[%emt 00:00:36]} 53. Kd6 {[%clk 00:15:42]} {[%emt
00:00:09]} Kxh3 {[%clk 00:10:25]} {[%emt 00:00:32]} 54. c7 {[%clk 00:16:05]}
{[%emt 00:00:08]} Bxc7+ {[%clk 00:10:50]} {[%emt 00:00:05]} 55. Kxc7 {[%clk
00:16:32]} {[%emt 00:00:04]} Kxg4 {[%clk 00:11:15]} {[%emt 00:00:04]} 56. b6
{[%clk 00:16:59]} {[%emt 00:00:03]} h5 {[%clk 00:10:26]} {[%emt 00:01:19]} 57.
b7 {[%clk 00:17:25]} {[%emt 00:00:04]} Kg3 {[%clk 00:10:23]} {[%emt 00:00:32]}
58. b8=Q {[%emt 00:00:10]} h4 {[%clk 00:10:37]} {[%emt 00:00:16]} 59. Qg8
{[%clk 00:15:51]} {[%emt 00:02:24]} h3 {[%clk 00:10:52]} {[%emt 00:00:15]} 60.
Qxg7+ {[%clk 00:16:08]} {[%emt 00:00:13]} Kf2 {[%clk 00:10:51]} {[%emt
00:00:29]} 61. Qh6 {[%clk 00:15:55]} {[%emt 00:00:45]} Kg2 {[%clk 00:10:42]}
{[%emt 00:00:39]} 62. Qg5+ {[%clk 00:16:17]} {[%emt 00:00:09]} Kh1 {[%clk
00:10:23]} {[%emt 00:00:49]} 63. Qf5 {[%clk 00:16:08]} {[%emt 00:00:38]} Kg2
{[%clk 00:10:21]} {[%emt 00:00:32]} 64. Qg4+ {[%clk 00:16:33]} {[%emt
00:00:05]} Kh2 {[%clk 00:10:28]} {[%emt 00:00:23]} 65. Kd6 {[%clk 00:16:55]}
{[%emt 00:00:08]} 1-0

[Event "NJSK 2022 Jeugd B"]
[Site "Almelo, Netherlands"]
[Date "2022.05.01"]
[Round "1.4"]
[White "Knol, Daniel"]
[Black "Achuthan, Dylan"]
[Result "0-1"]
[TimeControl "90min/40moves + 30min + 30sec/move"]
[WhiteElo "1685"]
[BlackElo "1995"]

1. e4 {[%clk 01:30:59]} c5 {[%clk 01:30:42]} {[%emt 00:00:19]} 2. c3 {[%clk
01:31:25]} {[%emt 00:00:03]} d5 {[%clk 01:30:55]} {[%emt 00:00:18]} 3. exd5
{[%clk 01:31:51]} {[%emt 00:00:04]} Qxd5 {[%clk 01:31:19]} {[%emt 00:00:06]} 4.
Nf3 {[%clk 01:32:17]} {[%emt 00:00:03]} Nf6 {[%clk 01:24:15]} {[%emt 00:07:34]}
5. Be2 {[%clk 01:30:08]} {[%emt 00:02:39]} Nc6 {[%clk 01:22:31]} {[%emt
00:02:15]} 6. O-O {[%clk 01:30:23]} {[%emt 00:00:14]} e5 {[%clk 01:22:21]}
{[%emt 00:00:40]} 7. Na3 {[%clk 01:05:54]} {[%emt 00:25:00]} Be7 {[%clk
01:18:50]} {[%emt 00:04:01]} 8. Bc4 {[%clk 00:58:39]} {[%emt 00:07:45]} Qd7
{[%clk 00:31:26]} {[%emt 00:47:55]} 9. Bb5 {[%clk 00:51:16]} {[%emt 00:07:52]}
Qc7 {[%clk 00:27:12]} {[%emt 00:04:45]} 10. Bxc6+ {[%clk 00:50:37]} {[%emt
00:01:09]} bxc6 {[%clk 00:27:19]} {[%emt 00:00:22]} 11. Nc4 {[%clk 00:47:42]}
{[%emt 00:03:25]} e4 {[%clk 00:24:19]} {[%emt 00:21:24]} 12. Nfe5 {[%clk
00:47:12]} {[%emt 00:01:01]} Bf5 {[%clk 00:20:49]} {[%emt 00:03:59]} 13. Qa4
{[%clk 00:31:21]} {[%emt 00:16:22]} Rc8 {[%clk 00:20:00]} {[%emt 00:01:19]} 14.
f4 {[%clk 00:27:15]} {[%emt 00:04:36]} h5 {[%clk 00:18:20]} {[%emt 00:02:10]}
15. Na5 {[%clk 00:21:48]} {[%emt 00:05:57]} O-O {[%clk 00:11:09]} {[%emt
00:07:41]} 16. Naxc6 {[%clk 00:11:06]} {[%emt 00:11:12]} Bd6 {[%clk 00:11:11]}
{[%emt 00:00:28]} 17. Qxa7 {[%clk 00:10:28]} {[%emt 00:01:07]} Bxe5 {[%clk
00:08:03]} {[%emt 00:03:39]} 18. fxe5 {[%clk 00:10:55]} {[%emt 00:00:03]} Qxc6
{[%clk 00:08:10]} {[%emt 00:00:23]} 19. Rxf5 {[%clk 00:08:51]} {[%emt
00:02:34]} Nd5 {[%clk 00:02:12]} {[%emt 00:06:28]} 20. Qa3 {[%clk 00:05:17]}
{[%emt 00:04:04]} Qe6 {[%emt 00:01:45]} 21. Rf2 {[%clk 00:04:48]} Qxe5 {[%clk
00:01:33]} {[%emt 00:00:53]} 22. c4 {[%clk 00:04:30]} {[%emt 00:00:48]} Nb4
{[%clk 00:01:03]} {[%emt 00:01:00]} 23. Qc3 {[%clk 00:04:49]} {[%emt 00:00:11]}
Qe6 {[%clk 00:00:50]} {[%emt 00:00:42]} 24. b3 {[%clk 00:01:50]} {[%emt
00:03:30]} Nd3 {[%clk 00:00:46]} {[%emt 00:00:34]} 25. Bb2 {[%clk 00:02:13]}
{[%emt 00:00:07]} f6 {[%clk 00:00:45]} {[%emt 00:00:31]} 26. Re2 {[%clk
00:02:16]} {[%emt 00:00:26]} Qg4 {[%clk 00:00:38]} {[%emt 00:00:37]} 27. Kf1
{[%clk 00:01:35]} {[%emt 00:01:12]} Qf4+ {[%clk 00:01:03]} {[%emt 00:00:05]} 28.
Kg1 {[%clk 00:01:56]} {[%emt 00:00:09]} Qg4 {[%clk 00:01:31]} {[%emt 00:00:02]}
29. Kf1 {[%clk 00:02:22]} {[%emt 00:00:04]} Rfe8 {[%clk 00:00:45]} {[%emt
00:01:16]} 30. Re3 {[%clk 00:01:59]} {[%emt 00:00:54]} Re5 {[%clk 00:00:45]}
{[%emt 00:00:29]} 31. Rg3 {[%clk 00:00:56]} {[%emt 00:01:33]} Rf5+ {[%clk
00:00:45]} {[%emt 00:00:30]} 32. Kg1 {[%clk 00:01:22]} {[%emt 00:00:04]} Qf4
{[%clk 00:00:44]} {[%emt 00:00:30]} 33. Rf3 {[%clk 00:01:05]} {[%emt 00:00:48]}
exf3 {[%clk 00:00:48]} {[%emt 00:00:26]} 34. Qxd3 {[%clk 00:01:34]} Rg5 {[%clk
00:00:35]} {[%emt 00:00:42]} 35. g3 {[%clk 00:01:51]} {[%emt 00:00:14]} Rxg3+
{[%clk 00:00:39]} {[%emt 00:00:26]} 36. hxg3 {[%clk 00:02:18]} {[%emt
00:00:04]} Qxg3+ {[%clk 00:01:00]} {[%emt 00:00:09]} 37. Kf1 {[%clk 00:02:28]}
{[%emt 00:00:19]} Qg2+ {[%clk 00:01:21]} {[%emt 00:00:10]} 38. Ke1 {[%clk
00:02:47]} {[%emt 00:00:10]} f2+ {[%clk 00:01:28]} {[%emt 00:00:24]} 0-1